bitfinex/quotes_BTCUSD_20241205
["timestamp","ask_amount","ask_price","bid_price","bid_amount"]
[1733413160028,0.001,101710.0,101700.0,0.102319]
[1733413160464,0.001,101710.0,101700.0,0.098319]
[1733413161123,0.001,101710.0,101700.0,0.10292435]
[1733413161333,0.001,101710.0,101700.0,0.10592435]
[1733413161541,0.001,101710.0,101700.0,0.10690746]
[1733413161747,0.001,101710.0,101700.0,0.20358351]
[1733413161976,0.001,101710.0,101700.0,0.2026004]
[1733413162185,0.10231851,101770.0,101740.0,0.098283]
[1733413162399,0.51286356,101770.0,101740.0,0.29485]
[1733413162634,0.31632856,101770.0,101740.0,0.196567]
[1733413162874,0.393091,101760.0,101750.0,0.00562804]
[1733413163097,0.393091,101760.0,101730.0,0.343679]
[1733413163319,0.393105,101760.0,101730.0,0.44335505]
[1733413163528,0.393105,101760.0,101750.0,0.00756]
[1733413163759,0.58966,101760.0,101740.0,0.00844142]
[1733413163985,0.19755,101760.0,101740.0,0.20738926]
[1733413164216,0.001,101760.0,101750.0,0.09926272]
[1733413164446,0.001,101760.0,101750.0,0.09828]
[1733413164893,0.001,101760.0,101750.0,0.19795605]
[1733413165104,0.001,101760.0,101750.0,0.42889662]
[1733413165331,0.001,101760.0,101750.0,0.19795605]
[1733413165536,0.001,101760.0,101750.0,0.42889662]
[1733413165963,0.001,101760.0,101750.0,0.47769662]
[1733413166447,0.346484,101790.0,101750.0,0.47769662]
[1733413166673,0.15,101790.0,101780.0,0.108076]
[1733413166882,0.15,101790.0,101780.0,0.20873444]
[1733413167114,0.15,101790.0,101780.0,0.05582209]
[1733413167347,0.44615805,101790.0,101780.0,0.01042209]
[1733413167578,0.44615805,101790.0,101770.0,0.10906256]
[1733413167579,0.15,101790.0,101770.0,0.10906256]
[1733413167800,0.15,101790.0,101780.0,0.01020961]
[1733413168234,0.27848199,101790.0,101780.0,0.01020961]
[1733413168435,0.27848199,101790.0,101770.0,0.108086]
[1733413168640,0.27848199,101790.0,101770.0,0.216172]
[1733413168641,0.47496499,101790.0,101770.0,0.216172]
[1733413168857,0.47496499,101790.0,101760.0,0.153491]
[1733413168858,0.196492,101790.0,101780.0,0.01021606]
[1733413169268,0.17567605,101790.0,101750.0,0.216202]
[1733413169485,0.196499,101790.0,101780.0,0.01021606]
[1733413169693,0.196499,101790.0,101750.0,0.20876058]
[1733413169694,0.393024,101780.0,101750.0,0.20876058]
[1733413169911,0.393024,101780.0,101750.0,0.20875758]
[1733413170135,0.196522,101770.0,101750.0,0.20777505]
[1733413170344,0.393023,101780.0,101760.0,0.108097]
[1733413170751,0.196532,101770.0,101740.0,0.11098576]
[1733413170975,0.33061662,101770.0,101730.0,0.1221]
[1733413171248,0.393092,101760.0,101730.0,0.32989805]
[1733413171472,0.393092,101760.0,101740.0,0.108113]
[1733413171696,0.393093,101760.0,101740.0,0.108118]
[1733413171912,0.19654,101760.0,101740.0,0.21623]
[1733413172339,0.19654,101760.0,101750.0,0.002]
[1733413172799,0.39309,101760.0,101740.0,0.108112]
[1733413173471,0.23094057,101770.0,101750.0,0.00098278]
[1733413173676,0.196572,101750.0,101730.0,0.0465]
[1733413173905,0.393142,101750.0,101730.0,0.0465]
[1733413174135,0.393172,101740.0,101710.0,0.340785]
[1733413174347,0.196611,101730.0,101710.0,0.232644]
[1733413174566,0.68943705,101740.0,101710.0,0.340788]
[1733413174785,0.393141,101750.0,101720.0,0.108134]
[1733413175006,0.68939205,101750.0,101720.0,0.32538193]
[1733413175217,0.655453,101760.0,101730.0,0.10910693]
[1733413175421,0.196591,101740.0,101720.0,0.09967605]
[1733413175667,0.393182,101740.0,101710.0,0.330956]
[1733413175871,0.196591,101740.0,101720.0,0.098307]
[1733413176312,0.393182,101740.0,101720.0,0.098307]
[1733413176544,0.393265,101720.0,101700.0,0.001738]
[1733413176790,0.42757757,101710.0,101700.0,0.001738]
[1733413176999,0.52725362,101710.0,101700.0,0.001738]
[1733413177829,0.29631305,101710.0,101700.0,0.001738]
[1733413178035,0.54717368,101710.0,101700.0,0.001738]
[1733413178246,0.35053668,101710.0,101700.0,0.001738]
[1733413178455,0.54617368,101710.0,101700.0,0.001738]
[1733413178659,0.64617368,101710.0,101700.0,0.001738]
[1733413179338,0.31523311,101710.0,101700.0,0.001738]
[1733413179749,0.54617368,101710.0,101700.0,0.001738]
[1733413182629,0.72707368,101710.0,101700.0,0.001738]
[1733413183289,0.55907367,101710.0,101700.0,0.001738]
[1733413185381,0.2472331,101710.0,101700.0,0.001738]
[1733413186248,0.47817367,101710.0,101700.0,0.001738]
[1733413186839,0.57817367,101710.0,101700.0,0.001738]
[1733413187313,0.48751399,101710.0,101700.0,0.001738]
[1733413187513,0.25657342,101710.0,101700.0,0.001738]
[1733413187660,0.22589738,101710.0,101700.0,0.001738]
[1733413187872,0.22589738,101710.0,101700.0,0.00989279]
[1733413188238,0.48851399,101710.0,101700.0,0.00989279]
[1733413188893,0.48851399,101710.0,101700.0,0.001738]
[1733413189503,0.196696,101680.0,101650.0,0.20958022]
[1733413189706,0.196696,101680.0,101660.0,0.09967605]
[1733413189878,0.196696,101680.0,101660.0,0.19902054]
[1733413190075,0.590054,101690.0,101660.0,0.29738254]
[1733413190283,0.590054,101690.0,101660.0,0.39574454]
[1733413190479,0.393402,101680.0,101660.0,0.09967605]
[1733413190707,0.590113,101680.0,101660.0,0.09967605]
[1733413190879,0.393402,101680.0,101660.0,0.09967605]
[1733413191570,0.393402,101680.0,101670.0,0.00734267]
[1733413191765,0.393459,101670.0,101650.0,0.0005]
[1733413192168,0.196734,101660.0,101650.0,0.0005]
[1733413192357,0.393408,101680.0,101650.0,0.10115974]
[1733413192533,0.393409,101680.0,101660.0,0.09967605]
[1733413192734,0.196714,101670.0,101660.0,0.09967605]
[1733413192934,0.196695,101680.0,101660.0,0.19803705]
[1733413193337,0.22624126,101690.0,101660.0,0.19803705]
[1733413193536,0.196704,101680.0,101660.0,0.19803705]
[1733413193803,0.393409,101680.0,101660.0,0.19803705]
[1733413194040,0.393409,101680.0,101660.0,0.29640005]
[1733413194884,0.41325441,101690.0,101660.0,0.39476205]
[1733413195326,0.41325441,101690.0,101670.0,0.098357]
[1733413195551,0.60994741,101690.0,101660.0,0.39475905]
[1733413195779,0.00972064,101700.0,101680.0,0.196679]
[1733413196006,0.00972064,101700.0,101690.0,0.098338]
[1733413196232,0.5908079,101710.0,101690.0,0.098338]
[1733413196438,0.5908079,101710.0,101690.0,0.00030303]
[1733413196439,0.19514185,101700.0,101690.0,0.00030303]
[1733413196665,0.26947433,101700.0,101690.0,0.00030303]
[1733413196893,0.19514185,101700.0,101690.0,0.00030303]
[1733413197740,0.52366531,101710.0,101690.0,0.00030303]
[1733413197949,0.42398926,101710.0,101690.0,0.00030303]
[1733413198150,0.62064426,101710.0,101690.0,0.00030303]
[1733413198356,0.62066226,101710.0,101690.0,0.00030303]
[1733413198560,0.196656,101700.0,101690.0,0.00030303]
[1733413199631,0.42400126,101710.0,101690.0,0.00030303]
[1733413199840,0.42400126,101710.0,101690.0,0.09864103]
[1733413200044,0.03070426,101710.0,101690.0,0.19795636]
[1733413200252,0.03070426,101710.0,101700.0,0.09967605]
[1733413200460,0.03070426,101710.0,101700.0,0.19800405]
[1733413200461,0.0008689,101710.0,101700.0,0.19800405]
[1733413200675,0.0008689,101710.0,101700.0,0.3483095]
[1733413200918,0.0008689,101710.0,101700.0,0.6767095]
[1733413201113,0.0008689,101710.0,101700.0,0.24600405]
[1733413201344,0.45625765,101750.0,101710.0,0.196632]
[1733413201639,0.196589,101740.0,101720.0,0.09967605]
[1733413201833,0.196618,101720.0,101700.0,0.244652]
[1733413202055,0.1966,101730.0,101710.0,0.098317]
[1733413202283,0.393179,101740.0,101710.0,0.2972872]
[1733413202512,0.1966,101730.0,101710.0,0.29630105]
[1733413202732,0.393209,101730.0,101710.0,0.19798705]
[1733413203191,0.393182,101740.0,101710.0,0.19798705]
[1733413203429,0.196589,101740.0,101710.0,0.19798705]
[1733413203639,0.196589,101740.0,101720.0,0.098307]
[1733413203849,0.195589,101740.0,101720.0,0.098307]
[1733413204063,0.2163401,101750.0,101720.0,0.19896603]
[1733413204282,0.393145,101750.0,101730.0,0.098294]
[1733413204485,0.196569,101750.0,101730.0,0.196593]
[1733413204708,0.196569,101750.0,101730.0,0.098294]
[1733413204919,0.393026,101780.0,101740.0,0.38159751]
[1733413205125,0.196524,101770.0,101740.0,0.24726005]
[1733413205333,0.197361,101790.0,101750.0,0.00098265]
[1733413205546,0.41337809,101790.0,101760.0,0.29620705]
[1733413205755,0.000869,101790.0,101780.0,0.35833856]
[1733413206003,0.000869,101790.0,101780.0,0.75626561]
[1733413206215,0.0008681,101810.0,101800.0,0.42986956]
[1733413206451,0.0008689,101840.0,101800.0,0.34897605]
[1733413206715,0.3936649,101840.0,101810.0,0.29611805]
[1733413206951,0.10054495,101840.0,101800.0,0.147528]
[1733413207181,0.3936729,101840.0,101810.0,0.10646066]
[1733413207403,0.1972679,101840.0,101810.0,0.30387175]
[1733413207632,0.0008689,101840.0,101820.0,0.09919404]
[1733413207851,0.0008689,101840.0,101820.0,0.43050352]
[1733413208081,0.0008689,101840.0,101830.0,0.09918397]
[1733413208278,0.13009889,101860.0,101820.0,0.33682088]
[1733413208515,0.00098199,101850.0,101830.0,0.00696785]
[1733413208732,0.29701804,101860.0,101830.0,0.10516285]
[1733413208967,0.28776427,101870.0,101830.0,0.33926433]
[1733413209173,0.393545,101870.0,101840.0,0.19884492]
[1733413209392,0.393545,101870.0,101840.0,0.19786305]
[1733413209618,0.000869,101870.0,101850.0,0.098183]
[1733413209862,0.19817999,101870.0,101850.0,0.098183]
[1733413210103,0.000869,101870.0,101850.0,0.10512655]
[1733413210327,0.00185099,101870.0,101850.0,0.10513255]
[1733413210603,0.00185099,101870.0,101850.0,0.20331455]
[1733413211049,0.00185099,101870.0,101850.0,0.10513155]
[1733413211274,0.000869,101870.0,101850.0,0.4021433]
[1733413211479,0.000869,101870.0,101850.0,0.3039613]
[1733413211910,0.196347,101860.0,101850.0,0.00694955]
[1733413212360,0.196347,101860.0,101840.0,0.098192]
[1733413212585,0.392695,101860.0,101850.0,0.00661097]
[1733413212809,0.49323005,101870.0,101850.0,0.00661097]
[1733413213028,0.49323005,101870.0,101840.0,0.196383]
[1733413213252,0.32555299,101870.0,101840.0,0.29605405]
[1733413213458,0.196342,101870.0,101850.0,0.00661097]
[1733413213702,0.00098199,101860.0,101850.0,0.00661097]
[1733413213914,0.19732899,101860.0,101850.0,0.00662144]
[1733413214134,0.392706,101860.0,101830.0,0.098201]
[1733413214364,0.2,101830.0,101780.0,0.15]
[1733413214571,0.655355,101810.0,101780.0,0.15]
[1733413214777,0.75503105,101810.0,101780.0,0.15098243]
[1733413214984,0.00098199,101800.0,101780.0,0.15]
[1733413215226,1.1791076,101810.0,101780.0,0.24825]
[1733413215908,1.1791076,101810.0,101780.0,0.15]
[1733413216111,0.196464,101800.0,101780.0,0.15]
[1733413216579,0.23163856,101790.0,101780.0,0.15]
[1733413217735,0.62457856,101800.0,101780.0,0.15]
[1733413217946,0.42810256,101800.0,101780.0,0.15]
[1733413218166,0.62457656,101800.0,101780.0,0.15]
[1733413218404,0.64733799,101810.0,101780.0,0.24967605]
[1733413218611,0.84379299,101810.0,101780.0,0.34792105]
[1733413218817,0.305742,101830.0,101790.0,0.10065837]
[1733413218818,0.65662399,101830.0,101790.0,0.10065837]
[1733413219051,0.45088199,101830.0,101800.0,0.196454]
[1733413219278,0.0804,101850.0,101810.0,0.10065807]
[1733413219279,0.276777,101850.0,101810.0,0.10065807]
[1733413219516,0.196388,101840.0,101810.0,0.29610905]
[1733413219722,0.41230917,101850.0,101820.0,0.09918594]
[1733413219945,0.42899856,101860.0,101830.0,0.098202]
[1733413220183,0.197348,101860.0,101840.0,0.098192]
[1733413220416,0.001,101860.0,101840.0,0.19638]
[1733413220636,0.001,101860.0,101840.0,0.196376]
[1733413220854,0.001,101860.0,101840.0,0.19786405]
[1733413221085,0.001,101860.0,101840.0,0.29604905]
[1733413221537,0.001,101860.0,101850.0,0.00659579]
[1733413221992,0.001,101860.0,101840.0,0.39423605]
[1733413222245,0.001,101860.0,101850.0,0.00659526]
[1733413222483,0.001,101860.0,101850.0,0.10477826]
[1733413222719,0.45770756,101900.0,101850.0,0.1988408]
[1733413222933,0.1970809,101930.0,101920.0,0.1]
[1733413223159,0.196253,101910.0,101890.0,0.09967605]
[1733413223358,0.42788456,101920.0,101900.0,0.1]
[1733413223597,0.29594005,101910.0,101890.0,0.1]
[1733413223815,0.0008679,101930.0,101860.0,0.270466]
[1733413223816,0.52759861,101900.0,101860.0,0.270466]
[1733413224018,0.33131461,101900.0,101870.0,0.098164]
[1733413224238,0.02914236,101890.0,101870.0,0.19730355]
[1733413224454,0.02914236,101890.0,101870.0,0.196315]
[1733413224707,0.12881841,101900.0,101880.0,0.098154]
[1733413224902,0.12881841,101900.0,101880.0,0.196301]
[1733413224903,0.02914236,101900.0,101880.0,0.196301]
[1733413225128,0.02914236,101900.0,101890.0,0.098145]
[1733413225371,0.10524236,101910.0,101890.0,0.098145]
[1733413225602,0.10524236,101910.0,101890.0,0.198283]
[1733413226045,0.10524236,101910.0,101890.0,0.306234]
[1733413226254,0.10524236,101910.0,101890.0,0.098138]
[1733413226429,0.0761,101910.0,101900.0,0.107948]
[1733413226654,0.02914236,101920.0,101900.0,0.107948]
[1733413227002,0.22537536,101920.0,101880.0,0.10006343]
[1733413227205,0.02914236,101920.0,101890.0,0.20962405]
[1733413227425,0.02914236,101920.0,101900.0,0.107948]
[1733413228258,0.3933179,101930.0,101900.0,0.215896]
[1733413228259,0.58546773,101930.0,101900.0,0.215896]
[1733413228631,0.68514378,101930.0,101900.0,0.215896]
[1733413229063,0.70468625,101930.0,101900.0,0.215896]
[1733413229298,0.70468625,101930.0,101900.0,0.107948]
[1733413229516,0.70468625,101930.0,101890.0,0.107948]
[1733413229517,0.72379261,101920.0,101890.0,0.107948]
[1733413229734,0.52754761,101920.0,101890.0,0.107948]
[1733413229998,0.72379461,101920.0,101890.0,0.215907]
[1733413230204,0.49215605,101920.0,101890.0,0.215907]
[1733413230828,0.41298747,101930.0,101900.0,0.215895]
[1733413231047,0.31643752,101930.0,101900.0,0.323836]
[1733413231251,0.02054247,101930.0,101910.0,0.107936]
[1733413231470,0.02054247,101930.0,101910.0,0.215866]
[1733413231673,0.000868,101920.0,101910.0,0.215866]
[1733413231895,0.000868,101920.0,101910.0,0.10793]
[1733413232602,0.000868,101920.0,101900.0,0.107945]
[1733413232814,0.10054405,101920.0,101890.0,0.107952]
[1733413233076,0.10054405,101920.0,101850.0,0.23163856]
[1733413233077,0.196284,101900.0,101850.0,0.23163856]
[1733413233291,0.196331,101870.0,101840.0,0.00300375]
[1733413233513,0.49234805,101870.0,101840.0,0.00300375]
[1733413233724,0.49234805,101870.0,101830.0,0.216028]
[1733413233725,0.196349,101860.0,101830.0,0.108012]
[1733413233924,0.196349,101860.0,101810.0,0.216072]
[1733413233925,0.0788,101850.0,101810.0,0.216072]
[1733413234127,0.37485605,101850.0,101820.0,0.108033]
[1733413234369,0.57123505,101850.0,101820.0,0.108033]
[1733413234573,0.49375712,101850.0,101820.0,0.108033]
[1733413234787,0.51675712,101850.0,101820.0,0.108033]
[1733413235225,0.196388,101840.0,101810.0,0.31574905]
[1733413235463,0.196388,101840.0,101810.0,0.20771205]
[1733413235671,0.196444,101810.0,101790.0,0.00288038]
[1733413235891,0.392926,101800.0,101780.0,0.001736]
[1733413236318,0.49260205,101800.0,101780.0,0.001736]
[1733413236554,0.196482,101790.0,101780.0,0.001736]
[1733413236772,0.29615805,101790.0,101780.0,0.001736]
[1733413238423,0.09967605,101790.0,101780.0,0.001736]
[1733413238626,0.29615805,101790.0,101780.0,0.001736]
[1733413238833,0.624638,101800.0,101780.0,0.001736]
[1733413239007,0.52783905,101800.0,101780.0,0.001736]
[1733413239208,0.44613905,101800.0,101780.0,0.001736]
[1733413239446,0.24967605,101800.0,101780.0,0.001736]
[1733413239664,0.15,101800.0,101780.0,0.001736]
[1733413239879,0.15,101800.0,101780.0,0.00271841]
[1733413240196,0.15,101800.0,101780.0,0.09998]
[1733413240326,0.15,101800.0,101780.0,0.198224]
[1733413240536,0.15,101800.0,101790.0,0.098241]
[1733413240757,0.15,101800.0,101780.0,0.29790005]
[1733413240938,0.346464,101800.0,101780.0,0.031736]
[1733413241149,0.346464,101800.0,101780.0,0.129986]
[1733413241528,0.15,101800.0,101780.0,0.129986]
[1733413241777,0.15,101800.0,101780.0,0.228231]
[1733413241994,0.15,101800.0,101780.0,0.32790705]
[1733413242157,0.15,101800.0,101780.0,0.32790205]
[1733413242386,0.15,101800.0,101790.0,0.098241]
[1733413243200,0.15,101800.0,101780.0,0.22965505]
[1733413243382,0.3929,101810.0,101780.0,0.32790005]
[1733413243588,0.29612205,101810.0,101780.0,0.031736]
[1733413243826,0.196473,101800.0,101780.0,0.031736]
[1733413244081,0.392949,101800.0,101780.0,0.001736]
[1733413244631,0.29819072,101830.0,101780.0,0.10141205]
[1733413244833,0.196387,101840.0,101810.0,0.09822]
[1733413245038,0.0772,101860.0,101820.0,0.19887015]
[1733413245240,0.196369,101850.0,101830.0,0.098197]
[1733413245500,0.196369,101850.0,101790.0,0.15]
[1733413245501,0.196416,101830.0,101790.0,0.15]
[1733413245709,0.392832,101830.0,101800.0,0.29613305]
[1733413245835,0.589253,101830.0,101800.0,0.29613305]
[1733413246040,0.392832,101830.0,101800.0,0.29612805]
[1733413246243,0.392832,101830.0,101800.0,0.39435405]
[1733413246532,0.392832,101830.0,101800.0,0.29612805]
[1733413246703,0.589256,101830.0,101800.0,0.29612805]
[1733413247128,0.196416,101830.0,101800.0,0.39435305]
[1733413247342,0.392835,101830.0,101800.0,0.29612705]
[1733413247540,0.589253,101830.0,101800.0,0.29612705]
[1733413247741,0.196428,101820.0,101800.0,0.29612705]
[1733413247997,0.196463,101800.0,101790.0,0.15]
[1733413248420,0.392903,101810.0,101790.0,0.15]
[1733413248634,0.196463,101800.0,101790.0,0.15]
[1733413248869,0.196613,101800.0,101790.0,0.15]
[1733413249042,0.00015,101800.0,101790.0,0.15]
[1733413249450,0.00015,101800.0,101790.0,0.58640037]
[1733413249623,0.00015,101800.0,101790.0,0.58541803]
[1733413249842,0.20511995,101880.0,101820.0,0.098203]
[1733413250075,0.196408,101830.0,101800.0,0.145726]
[1733413250281,0.196397,101840.0,101810.0,0.098214]
[1733413250471,0.41244465,101850.0,101830.0,0.00506217]
[1733413250788,0.196377,101850.0,101830.0,0.098197]
[1733413251197,0.196377,101850.0,101840.0,0.00496382]
[1733413251606,0.196377,101850.0,101840.0,0.01584285]
[1733413251791,0.17049315,101850.0,101800.0,0.23163856]
[1733413252020,0.196441,101820.0,101790.0,0.248235]
[1733413252224,0.392877,101820.0,101790.0,0.34791105]
[1733413252445,0.196444,101810.0,101790.0,0.44615205]
[1733413252576,0.589309,101820.0,101790.0,0.44615205]
[1733413252813,0.392871,101820.0,101790.0,0.44614705]
[1733413253009,0.392871,101820.0,101800.0,0.098231]
[1733413253423,0.196435,101820.0,101800.0,0.098231]
[1733413253637,0.392871,101820.0,101790.0,0.54438105]
[1733413254088,0.392871,101820.0,101800.0,0.09823]
[1733413254292,0.57466305,101840.0,101810.0,0.098216]
[1733413254505,0.57466305,101840.0,101800.0,0.29612605]
[1733413254506,0.196406,101830.0,101800.0,0.29612605]
[1733413254707,0.392824,101830.0,101800.0,0.39435205]
[1733413254908,0.68892305,101830.0,101800.0,0.196449]
[1733413255146,0.29608205,101830.0,101810.0,0.098222]
[1733413255364,0.196396,101840.0,101810.0,0.32985956]
[1733413255588,0.09967605,101840.0,101790.0,0.1517362]
[1733413255807,0.196417,101830.0,101810.0,0.216083]
[1733413256043,0.196417,101830.0,101800.0,0.23772405]
[1733413256268,0.196434,101820.0,101800.0,0.246097]
[1733413256478,0.196417,101830.0,101800.0,0.354146]
[1733413256678,0.392834,101830.0,101810.0,0.108043]
[1733413257140,0.196417,101830.0,101810.0,0.108043]
[1733413257587,0.196417,101830.0,101810.0,0.216087]
[1733413257841,0.49247305,101840.0,101810.0,0.108043]
[1733413258053,0.196408,101830.0,101810.0,0.108043]
[1733413258482,0.29611605,101820.0,101800.0,0.03]
[1733413258692,0.196444,101810.0,101790.0,0.2598012]
[1733413259095,0.392897,101810.0,101790.0,0.2598012]
[1733413259303,0.196463,101800.0,101790.0,0.1517362]
[1733413262127,0.52777761,101800.0,101790.0,0.1517362]
[1733413263066,0.52777761,101800.0,101780.0,0.101736]
[1733413263067,0.446482,101790.0,101780.0,0.01012532]
[1733413263291,0.19656,101750.0,101740.0,0.15]
[1733413263499,0.196551,101760.0,101740.0,0.15]
[1733413263781,0.19656,101750.0,101740.0,0.15]
[1733413265690,0.196551,101760.0,101740.0,0.15]
[1733413265926,0.09967605,101750.0,101740.0,0.15]
[1733413266165,0.29623605,101750.0,101740.0,0.15]
[1733413266394,0.29623605,101750.0,101740.0,0.1517366]
[1733413266610,0.19656,101750.0,101740.0,0.16464243]
[1733413266862,0.393101,101760.0,101740.0,0.16464243]
[1733413267107,0.393101,101760.0,101740.0,0.28258943]
[1733413267334,0.21618844,101770.0,101750.0,0.117935]
[1733413267594,0.51239749,101770.0,101740.0,0.40053043]
[1733413267837,0.5237355,101770.0,101760.0,0.01290241]
[1733413268146,0.74403605,101770.0,101740.0,0.0017366]
[1733413268241,0.52191534,101770.0,101760.0,0.01290241]
[1733413268454,0.196548,101760.0,101740.0,0.1196766]
[1733413268678,0.29623605,101750.0,101740.0,0.0017366]
[1733413268901,0.84987247,101750.0,101740.0,0.0017366]
[1733413269152,0.75777461,101750.0,101740.0,0.0017366]
[1733413270739,0.65777461,101750.0,101740.0,0.0017366]
[1733413270943,0.75777461,101750.0,101740.0,0.0017366]
[1733413271635,0.65777461,101750.0,101740.0,0.0017366]
[1733413271839,0.75777461,101750.0,101740.0,0.0017366]
[1733413272067,0.85569383,101750.0,101740.0,0.0017366]
[1733413273185,0.62823656,101730.0,101720.0,0.001734]
[1733413273370,0.23163856,101700.0,101690.0,0.00203923]
[1733413273579,0.42827556,101710.0,101690.0,0.00203923]
[1733413273790,0.29631405,101710.0,101690.0,0.23803823]
[1733413274018,0.49296205,101710.0,101690.0,0.00203923]
[1733413274254,0.52797061,101700.0,101690.0,0.00203923]
[1733413275391,0.62797061,101700.0,101690.0,0.00203923]
[1733413276450,0.42831456,101690.0,101680.0,0.001734]
[1733413276662,0.52799061,101690.0,101680.0,0.001734]
[1733413276878,0.29635205,101690.0,101680.0,0.001734]
[1733413277552,0.52799061,101690.0,101680.0,0.001734]
[1733413278274,0.62799061,101690.0,101680.0,0.001734]
[1733413278493,0.53131461,101690.0,101680.0,0.001734]
[1733413278709,0.52833356,101680.0,101670.0,0.0217378]
[1733413278917,0.62800961,101680.0,101670.0,0.0217378]
[1733413279140,0.60850961,101680.0,101650.0,0.0005]
[1733413279369,0.42837256,101660.0,101650.0,0.0005]
[1733413279622,0.62804861,101660.0,101650.0,0.0005]
[1733413279846,0.29641005,101660.0,101650.0,0.0005]
[1733413280058,0.41941005,101660.0,101650.0,0.0005]
[1733413280270,0.31941005,101660.0,101650.0,0.0005]
[1733413280476,0.3450233,101660.0,101650.0,0.0005]
[1733413280704,0.31941005,101660.0,101650.0,0.01404245]
[1733413280954,0.023,101660.0,101650.0,0.26602805]
[1733413281162,0.023,101660.0,101650.0,0.49766661]
[1733413281405,0.023,101660.0,101650.0,0.59766661]
[1733413281611,0.196627,101720.0,101690.0,0.117998]
[1733413281832,0.29629505,101720.0,101670.0,0.00098327]
[1733413282050,0.29629505,101720.0,101690.0,0.118005]
[1733413282051,0.09967605,101710.0,101690.0,0.118005]
[1733413282259,0.29632505,101710.0,101680.0,0.11801]
[1733413282470,0.196629,101720.0,101700.0,0.0133621]
[1733413282679,0.29630505,101720.0,101700.0,0.117994]
[1733413282904,0.09967605,101720.0,101700.0,0.235981]
[1733413283130,0.09967605,101720.0,101710.0,0.117982]
[1733413283341,0.09967605,101720.0,101710.0,0.13133632]
[1733413283629,0.03167604,101720.0,101710.0,0.13133632]
[1733413284058,0.571684,101740.0,101710.0,0.46362417]
[1733413284059,0.0785,101740.0,101710.0,0.46362417]
[1733413284271,0.19657,101750.0,101720.0,0.235924]
[1733413284485,0.09967605,101750.0,101730.0,0.117958]
[1733413284721,0.11059081,101760.0,101740.0,0.117947]
[1733413284935,0.2006085,101760.0,101730.0,0.2359]
[1733413285167,0.2006085,101760.0,101740.0,0.013331]
[1733413285390,0.10093245,101760.0,101750.0,0.117936]
[1733413285604,0.393018,101780.0,101760.0,0.117924]
[1733413285810,0.393018,101780.0,101770.0,0.117912]
[1733413285811,0.10949606,101780.0,101770.0,0.117912]
[1733413286021,0.09969905,101790.0,101770.0,0.235817]
[1733413286238,0.37596005,101790.0,101770.0,0.235811]
[1733413286461,0.09967605,101780.0,101770.0,0.01328985]
[1733413287160,0.29617805,101780.0,101770.0,0.01328985]
[1733413287632,0.0785,101750.0,101690.0,0.23163856]
[1733413287845,0.52790461,101740.0,101710.0,0.235956]
[1733413288080,0.29626605,101740.0,101710.0,0.235956]
[1733413288319,0.15,101740.0,101720.0,0.235934]
[1733413288537,0.15,101740.0,101730.0,0.117959]
[1733413288765,0.543161,101740.0,101720.0,0.117964]
[1733413288976,0.196598,101730.0,101710.0,0.33562605]
[1733413289202,0.543172,101740.0,101710.0,0.33562305]
[1733413289436,0.543172,101740.0,101710.0,0.45359805]
[1733413289662,0.44625605,101740.0,101710.0,0.117972]
[1733413289888,0.196636,101720.0,101690.0,0.117998]
[1733413290115,0.23163856,101710.0,101700.0,0.117993]
[1733413290328,0.23163856,101710.0,101690.0,0.117998]
[1733413290557,0.23163856,101700.0,101690.0,0.117998]
[1733413290810,0.42827656,101710.0,101690.0,0.117998]
[1733413291030,0.196638,101710.0,101690.0,0.235997]
[1733413291305,0.77486156,101730.0,101690.0,0.10141165]
[1733413291518,0.42825856,101720.0,101700.0,0.117986]
[1733413291736,0.42825856,101720.0,101700.0,0.235971]
[1733413292374,0.72456461,101720.0,101690.0,0.1197326]
[1733413292609,0.23163856,101710.0,101700.0,0.117993]
[1733413292818,0.23163856,101720.0,101700.0,0.235978]
[1733413293251,0.23163856,101720.0,101700.0,0.235972]
[1733413293459,0.77485556,101730.0,101710.0,0.117982]
[1733413293668,0.42825756,101720.0,101700.0,0.33564705]
[1733413293918,0.23163856,101720.0,101700.0,0.33564705]
[1733413294131,0.23163856,101720.0,101700.0,0.45363505]
[1733413294343,0.543217,101730.0,101700.0,0.45363505]
[1733413294573,0.47521699,101730.0,101700.0,0.45363505]
[1733413294779,0.47521399,101730.0,101710.0,0.235964]
[1733413295210,0.47521399,101730.0,101720.0,0.0119465]
[1733413295416,0.27860599,101730.0,101720.0,0.0119465]
[1733413295855,0.08199999,101730.0,101720.0,0.0119465]
[1733413296079,0.08199999,101730.0,101720.0,0.1299165]
[1733413298452,0.01399998,101730.0,101720.0,0.1299165]
[1733413299147,0.1508678,101740.0,101730.0,0.117959]
[1733413299590,0.3474468,101740.0,101720.0,0.2478715]
[1733413299833,0.5440368,101740.0,101730.0,0.0119046]
[1733413300064,0.72421285,101740.0,101730.0,0.0119046]
[1733413300278,0.393226,101730.0,101700.0,0.503963]
[1733413300511,0.196609,101730.0,101710.0,0.117982]
[1733413300724,0.196598,101730.0,101710.0,0.235957]
[1733413300937,0.4279468,101740.0,101720.0,0.11797]
[1733413301144,0.6245368,101740.0,101720.0,0.23594]
[1733413301372,0.196611,101730.0,101700.0,0.385978]
[1733413301599,0.393224,101730.0,101700.0,0.48564805]
[1733413302033,0.393222,101730.0,101710.0,0.117982]
[1733413302288,0.393222,101730.0,101710.0,0.235964]
[1733413302499,0.589832,101730.0,101710.0,0.117982]
[1733413302709,0.196618,101720.0,101700.0,0.48565005]
[1733413302953,0.196618,101720.0,101670.0,0.71902653]
[1733413302954,0.296685,101690.0,101670.0,0.15]
[1733413303180,0.296685,101690.0,101650.0,0.0005]
[1733413303181,0.196734,101660.0,101650.0,0.0005]
[1733413303401,0.52804861,101660.0,101650.0,0.0005]
[1733413303636,0.56003719,101660.0,101650.0,0.0005]
[1733413303875,0.55948781,101660.0,101650.0,0.0005]
[1733413304081,0.196734,101660.0,101650.0,0.0005]
[1733413304548,0.2281732,101660.0,101650.0,0.0005]
[1733413304777,0.0775,101680.0,101650.0,0.0005]
[1733413305003,0.01931204,101680.0,101650.0,0.33626205]
[1733413305226,0.21601704,101680.0,101650.0,0.45430605]
[1733413305447,0.21601704,101680.0,101650.0,0.33626105]